bitfinex-derivatives/quotes_SOLF0:USTF0_20241105
["timestamp","ask_amount","ask_price","bid_price","bid_amount"]
[1730830528439,14.43341779,166.25,166.18,3.16]
[1730830528640,3.0083,166.22,166.18,3.16]
[1730830529536,3.0083,166.22,166.18,6.1687]
[1730830530949,14.43341779,166.25,166.18,3.16]
[1730830531441,3.62265155,166.24,166.18,3.16]
[1730830531647,14.43341779,166.25,166.18,3.16]
[1730830532048,3.62278654,166.24,166.18,3.16]
[1730830532347,3.0087,166.2,166.18,3.16]
[1730830532544,14.43341779,166.25,166.13,14.43341779]
[1730830532743,14.43341779,166.23,166.14,3.16]
[1730830533044,14.43341779,166.23,166.15,3.0094]
[1730830533247,14.43341779,166.16,166.1,2.712]
[1730830533640,21.43341779,166.11,165.96,19.20222502]
[1730830533838,3.0105,166.1,166.02,14.43341779]
[1730830534050,3.0105,166.1,166.04,3.0114]
[1730830534235,7.0,166.06,165.89,2.78985276]
[1730830534436,7.0,166.06,165.97,15.73551779]
[1730830534737,2.5824,166.12,165.99,14.43341779]
[1730830534738,17.01581779,166.12,165.99,14.43341779]
[1730830534936,3.0109,166.07,165.98,1.2922]
[1730830535138,3.0109,166.07,166.02,3.0117]
[1730830535333,17.01581779,166.12,166.02,6.1717]
[1730830535542,3.0108,166.08,166.02,6.1717]
[1730830535947,3.0111,166.06,166.0,3.012]
[1730830536148,3.0111,166.06,166.01,3.16]
[1730830536647,3.0109,166.08,166.01,6.1718]
[1730830537042,14.43341779,166.1,166.01,6.1718]
[1730830537248,14.43341779,166.1,166.01,3.16]
[1730830537451,14.43341779,166.1,165.99,17.44571779]
[1730830537652,14.43341779,166.1,166.0,3.16]
[1730830537950,14.43341779,166.1,166.01,3.0118]
[1730830538143,14.43341779,166.1,166.0,3.16]
[1730830538653,18.30811779,166.12,166.04,3.0113]
[1730830538840,18.30811779,166.12,166.01,14.43341779]
[1730830539044,3.0103,166.1,166.01,14.43341779]
[1730830539245,3.0103,166.1,166.04,3.0113]
[1730830540248,18.30811779,166.12,166.04,3.0113]
[1730830540548,3.0105,166.09,166.04,3.0113]
[1730830540743,1.2804,166.12,166.06,3.0109]
[1730830540944,3.0105,166.1,166.04,3.16]
[1730830541239,3.0105,166.1,166.05,3.0111]
[1730830542652,14.43341779,166.12,166.04,3.16]
[1730830543756,3.0109,166.08,166.04,3.18]
[1730830544141,3.0109,166.08,166.04,6.1914]
[1730830544948,3.0109,166.07,166.04,3.18]
[1730830546356,14.43341779,166.1,166.03,3.18]
[1730830546551,3.011,166.07,166.03,3.18]
[1730830547247,3.011,166.07,166.03,3.0116]
[1730830547553,3.011,166.07,166.03,6.1916]
[1730830550456,3.0112,166.06,166.03,3.18]
[1730830550953,3.0109,166.07,166.03,6.1915]
[1730830551351,14.43341779,166.1,166.03,3.18]
[1730830551558,3.0108,166.08,166.04,3.0113]
[1730830551949,14.43341779,166.1,166.03,3.18]
[1730830552150,3.0112,166.06,166.03,3.18]
[1730830552350,14.43341779,166.1,166.03,3.18]
[1730830552659,3.0108,166.08,166.04,3.0113]
[1730830552964,14.43341779,166.1,166.04,3.0113]
[1730830553261,3.0107,166.09,166.04,3.0113]
[1730830553456,14.43341779,166.1,166.04,3.0113]
[1730830554250,3.011,166.07,166.04,3.0113]
[1730830555062,3.0108,166.08,166.04,3.0113]
[1730830555259,14.43341779,166.1,166.03,3.18]
[1730830555573,3.0111,166.06,166.03,3.18]
[1730830556157,3.0111,166.06,166.03,6.1916]
[1730830556965,14.43341779,166.08,166.0,3.34]
[1730830557169,14.43341779,166.04,165.98,3.34]
[1730830557563,3.012,166.01,165.97,4.3147]
[1730830557769,3.012,166.01,165.98,3.34]
[1730830557965,14.43341779,166.04,165.98,3.34]
[1730830558765,3.0119,166.02,165.98,6.3525]
[1730830559466,3.0119,166.02,165.98,3.0125]
[1730830559667,3.0119,166.02,165.98,3.34]
[1730830559863,1.2607,166.09,165.98,3.34]
[1730830559864,14.43341779,166.06,165.98,3.34]
[1730830560167,3.0116,166.03,165.98,3.34]
[1730830560369,1.2607,166.09,165.98,17.77341779]
[1730830560370,14.43341779,166.08,165.98,17.77341779]
[1730830560572,14.43341779,166.08,165.99,1.2685]
[1730830560759,14.43341779,166.08,166.02,3.0116]
[1730830561263,3.0112,166.06,166.02,3.0116]
[1730830561568,14.43341779,166.08,166.02,3.0116]
[1730830561769,1.2607,166.09,166.03,3.0116]
[1730830561965,1.282,166.11,166.04,3.34]
[1730830562159,14.43341779,166.12,166.04,3.34]
[1730830562369,3.0101,166.12,166.08,3.0107]
[1730830562871,14.43341779,166.16,166.11,3.0101]
[1730830563068,3.0097,166.14,166.09,3.34]
[1730830563265,14.43341779,166.16,166.09,3.34]
[1730830563467,14.43341779,166.14,166.09,3.34]
[1730830563769,3.0103,166.1,166.09,3.34]
[1730830564767,14.43341779,166.14,166.09,3.34]
[1730830564968,14.43341779,166.16,166.1,3.0103]
[1730830565276,3.0099,166.13,166.09,3.34]
[1730830565568,3.0099,166.13,166.09,6.3504]
[1730830565766,14.43341779,166.14,166.09,3.34]
[1730830565958,3.0103,166.1,166.09,3.34]
[1730830566564,3.0102,166.11,166.09,3.34]
[1730830567376,3.01,166.12,166.09,3.34]
[1730830567770,14.43341779,166.14,166.09,3.34]
[1730830567970,14.43341779,166.16,166.09,3.34]
[1730830568471,14.43341779,166.16,166.09,6.3505]
[1730830568675,3.01,166.12,166.09,6.3505]
[1730830569269,3.0102,166.11,166.09,3.34]
[1730830569464,14.43341779,166.16,166.09,3.34]
[1730830570077,3.0102,166.11,166.09,3.34]
[1730830570278,14.43341779,166.16,166.09,3.34]
[1730830570576,14.43341779,166.16,166.0,1.3162]
[1730830570773,14.43341779,166.16,166.05,14.43341779]
[1730830571078,3.0097,166.14,166.1,3.0102]
[1730830571774,17.10041779,166.19,166.07,14.43341779]
[1730830572371,3.0097,166.14,166.08,4.7116]
[1730830572778,17.10041779,166.19,166.08,4.7116]
[1730830572972,17.10041779,166.19,166.11,3.01]
[1730830572973,3.0095,166.15,166.11,3.01]
[1730830573169,17.10041779,166.19,166.09,1.3077]
[1730830573678,3.0096,166.15,166.11,3.01]
[1730830574273,14.43341779,166.18,166.11,3.01]
[1730830574480,3.0097,166.14,166.11,3.01]
[1730830575579,3.0104,166.1,166.08,2.6978]
[1730830575885,14.43341779,166.14,166.09,3.34]
[1730830576182,14.43341779,166.14,166.06,3.32]
[1730830576183,3.0106,166.09,166.06,3.32]
[1730830576577,14.43341779,166.16,166.08,3.0107]
[1730830576777,14.43341779,166.16,166.06,3.32]
[1730830577577,3.0101,166.12,166.06,3.32]
[1730830577780,14.43341779,166.16,166.08,3.0105]
[1730830578574,3.0102,166.11,166.08,3.0105]
[1730830578772,14.43341779,166.16,166.06,3.32]
[1730830578972,3.01,166.12,166.07,3.0108]
[1730830579173,14.43341779,166.14,166.07,3.0108]
[1730830579779,3.0103,166.11,166.07,3.0108]
[1730830580475,3.0099,166.13,166.08,3.0106]
[1730830580677,14.43341779,166.17,166.06,17.75341779]
[1730830581084,14.43341779,166.17,166.09,3.0104]
[1730830583181,3.0099,166.13,166.09,3.0104]
[1730830583381,3.0099,166.13,166.09,12.26303176]
[1730830583882,3.0092,166.17,166.14,3.0096]
[1730830584085,3.0092,166.17,166.14,9.25263176]
[1730830584885,3.0091,166.17,166.14,9.25263176]
[1730830585284,9.25263176,166.2,166.14,9.25263176]
[1730830585489,3.9977,166.25,166.14,3.0095]
[1730830585490,3.009,166.18,166.14,3.0095]
[1730830585789,18.44519751,166.25,166.12,17.68749751]
[1730830586083,14.44749751,166.23,166.12,17.68749751]
[1730830586289,14.44749751,166.23,166.13,3.24]
[1730830586481,3.0087,166.19,166.13,3.24]
[1730830586989,3.0087,166.19,166.15,3.0093]
[1730830587687,3.0087,166.19,166.16,3.0092]
[1730830588883,3.0085,166.21,166.14,14.44749751]
[1730830589488,3.0086,166.2,166.14,14.44749751]
[1730830589890,17.14219751,166.25,166.17,3.009]
[1730830590184,14.44749751,166.31,166.19,14.44749751]
[1730830590391,14.44749751,166.31,166.21,14.44749751]
[1730830590982,14.44749751,166.31,166.23,3.0079]
[1730830591186,4.5424,166.32,166.21,14.44749751]
[1730830591187,18.98989751,166.32,166.21,14.44749751]
[1730830591378,15.74989751,166.32,166.21,14.44749751]
[1730830591584,15.74989751,166.32,166.24,3.0078]
[1730830591799,15.74989751,166.32,166.2,5.8614]
[1730830591800,14.44749751,166.32,166.25,3.24]
[1730830591991,14.44749751,166.37,166.26,14.44749751]
[1730830592192,3.0064,166.32,166.28,3.0071]
[1730830592705,14.44749751,166.37,166.26,15.81469751]
[1730830592886,14.44749751,166.35,166.26,15.81469751]
[1730830593194,14.44749751,166.35,166.27,3.24]
[1730830593395,3.0067,166.31,166.27,3.24]
[1730830593598,14.44749751,166.35,166.27,3.24]
[1730830595087,3.0067,166.3,166.27,3.24]
[1730830595298,14.44749751,166.35,166.26,1.3672]
[1730830595607,14.44749751,166.35,166.28,3.24]
[1730830596094,3.0067,166.3,166.28,3.24]
[1730830597091,3.0065,166.32,166.28,6.2471]
[1730830597305,3.9433,166.41,166.28,17.68749751]
[1730830597594,14.44749751,166.38,166.28,17.68749751]
[1730830597907,14.44749751,166.38,166.29,1.3111]
[1730830598093,14.44749751,166.4,166.3,14.44749751]
[1730830598289,3.006,166.35,166.31,3.0065]
[1730830598489,14.44749751,166.4,166.3,14.44749751]
[1730830598891,14.44749751,166.4,166.3,17.45419751]
[1730830599291,3.0054,166.37,166.3,17.45419751]
[1730830599488,14.44749751,166.4,166.3,17.45419751]
[1730830600505,14.44749751,166.4,166.32,3.0062]
[1730830600890,14.44749751,166.4,166.33,3.22]
[1730830602095,14.44749751,166.42,166.33,3.22]
[1730830602296,14.44749751,166.42,166.33,4.5461]
[1730830602499,3.0052,166.39,166.34,3.0059]
[1730830602695,14.44749751,166.42,166.33,1.3261]
[1730830602899,14.44749751,166.42,166.34,3.22]
[1730830603113,3.0054,166.38,166.34,3.22]
[1730830604092,3.0054,166.38,166.34,6.2259]
[1730830604694,14.44749751,166.44,166.34,17.66749751]
[1730830605399,3.0046,166.42,166.38,3.0052]
[1730830605701,3.0046,166.42,166.39,3.22]
[1730830606588,14.44749751,166.48,166.39,3.22]
[1730830606806,3.0042,166.44,166.4,3.0049]
[1730830607096,18.32609751,166.5,166.39,3.22]
[1730830607303,18.32609751,166.5,166.4,17.45239751]
[1730830607601,18.32609751,166.5,166.4,14.44749751]
[1730830607898,3.22,166.52,166.43,14.44749751]
[1730830607899,14.44749751,166.52,166.43,14.44749751]
[1730830608199,3.0032,166.5,166.44,3.22]
[1730830608411,14.44749751,166.52,166.44,3.22]
[1730830609191,3.0034,166.49,166.44,6.2241]
[1730830609395,14.44749751,166.52,166.44,3.22]
[1730830609797,3.0033,166.5,166.45,3.004]
[1730830610198,3.0033,166.5,166.45,17.45149751]
[1730830610607,3.0033,166.5,166.45,18.75639751]
[1730830611806,3.0033,166.5,166.45,20.04109751]
[1730830612101,3.0033,166.5,166.46,3.0038]
[1730830612499,3.0033,166.5,166.45,17.03709751]
[1730830612500,3.0033,166.49,166.45,17.03709751]
[1730830612698,1.2758,166.55,166.45,20.04109751]
[1730830613005,14.44749751,166.56,166.47,14.44749751]
[1730830613193,2.6839,166.57,166.49,14.44749751]
[1730830613401,1.3844,166.57,166.49,14.44749751]
[1730830613601,3.0027,166.53,166.49,14.44749751]
[1730830614298,1.3844,166.57,166.48,3.16]
[1730830614994,3.0029,166.51,166.48,3.16]
[1730830615707,3.0029,166.51,166.49,3.16]
[1730830617695,3.0029,166.51,166.47,17.45109751]
[1730830617902,3.0031,166.51,166.48,3.16]
[1730830618199,14.44749751,166.56,166.48,3.16]
[1730830618906,3.0025,166.54,166.48,3.16]
[1730830619103,14.44749751,166.56,166.48,3.16]
[1730830619699,3.0029,166.52,166.48,3.16]
[1730830621408,14.44749751,166.56,166.48,3.16]
[1730830621705,1.3844,166.57,166.5,14.44749751]
[1730830621907,14.44749751,166.58,166.5,14.44749751]
[1730830622607,3.0027,166.53,166.5,14.44749751]
[1730830623199,3.0028,166.52,166.5,14.44749751]
[1730830626407,14.44749751,166.57,166.45,20.04089751]
[1730830626605,14.44749751,166.57,166.46,3.16]
[1730830626606,1.2809,166.56,166.46,3.16]
[1730830627009,1.2809,166.56,166.46,6.1637]
[1730830627307,14.44749751,166.55,166.46,3.16]
[1730830627513,14.44749751,166.5,166.44,3.16]
[1730830628103,3.0045,166.43,166.41,3.52229]
[1730830628306,14.44749751,166.48,166.41,3.52229]
[1730830628707,3.0045,166.43,166.41,3.52229]
[1730830629222,14.44749751,166.48,166.41,3.52229]
[1730830629509,3.0038,166.46,166.41,3.52229]
[1730830629705,14.44749751,166.48,166.41,3.16]
[1730830631019,14.44749751,166.46,166.38,3.16]
[1730830631223,14.44749751,166.46,166.36,17.60749751]
[1730830631509,3.0052,166.39,166.36,17.60749751]
[1730830632307,14.44749751,166.46,166.36,17.60749751]
[1730830633606,3.0044,166.43,166.38,14.44749751]
[1730830634815,3.0044,166.43,166.39,3.005]
[1730830635016,3.0044,166.43,166.4,14.44749751]
[1730830635216,1.326,166.48,166.4,14.44749751]
[1730830635414,17.60749751,166.5,166.4,20.61229751]
[1730830635921,3.0043,166.44,166.4,20.61229751]
[1730830637013,14.44749751,166.5,166.4,17.60749751]
[1730830637211,3.0045,166.43,166.4,17.60749751]
[1730830637423,14.44749751,166.48,166.4,3.16]
[1730830638217,3.0047,166.41,166.4,3.16]
[1730830638410,14.44749751,166.48,166.4,3.16]
[1730830638824,3.0045,166.43,166.4,17.60749751]
[1730830639323,3.16,166.49,166.4,17.60749751]
[1730830639524,3.0042,166.44,166.4,20.61229751]
[1730830640036,3.16,166.49,166.4,20.61229751]
[1730830640037,3.16,166.49,166.4,17.60749751]
[1730830641219,14.44749751,166.5,166.4,17.60749751]
[1730830641418,3.16,166.49,166.4,17.60749751]
[1730830642424,14.44749751,166.48,166.4,3.16]
[1730830643622,3.0047,166.42,166.4,3.16]
[1730830645223,3.0044,166.43,166.4,17.60749751]
[1730830645623,3.16,166.49,166.4,17.60749751]
[1730830645826,3.16,166.49,166.4,20.61229751]
[1730830647232,3.0043,166.44,166.4,20.61229751]
[1730830649229,43.26,166.58,166.43,14.44749751]
[1730830649441,3.0032,166.5,166.46,14.44749751]
[1730830651227,3.0032,166.5,166.46,17.45129751]
[1730830651625,3.0028,166.52,166.46,14.44749751]
[1730830651839,15.77995463,166.57,166.46,17.45119751]
[1730830652025,12.61995463,166.57,166.46,14.44749751]
[1730830652337,3.0027,166.53,166.49,14.44749751]
[1730830652533,4.4686,166.57,166.49,14.44749751]
[1730830653035,1.3086,166.57,166.49,14.44749751]
[1730830653230,1.3086,166.57,166.49,17.45079751]
[1730830654038,3.0025,166.54,166.49,17.45079751]
[1730830654335,1.3086,166.57,166.49,14.44749751]
[1730830654636,1.3086,166.57,166.48,3.16]
[1730830654637,3.0029,166.51,166.48,3.16]
[1730830654858,1.3086,166.57,166.45,1.2683]
[1730830654859,14.44749751,166.55,166.45,1.2683]
[1730830655142,3.0035,166.48,166.45,4.4283]
[1730830655652,14.44749751,166.53,166.45,3.16]
[1730830655832,14.44749751,166.53,166.43,17.60749751]
[1730830656227,14.44749751,166.51,166.43,3.16]
[1730830657132,14.44749751,166.48,166.38,1.2735]
[1730830657737,3.16,166.49,166.38,15.72099751]
[1730830657938,6.0053,166.53,166.38,15.72099751]
[1730830657939,2.6574,166.54,166.45,14.44749751]
[1730830658243,3.0035,166.48,166.45,14.44749751]
[1730830658632,2.6574,166.54,166.45,14.44749751]
[1730830659627,1.3575,166.54,166.47,14.44749751]
[1730830659835,4.4575,166.56,166.47,17.60749751]
[1730830660039,17.02129751,166.6,166.5,14.44749751]
[1730830660233,3.0025,166.54,166.5,14.44749751]
[1730830662135,3.002,166.57,166.5,14.44749751]
[1730830662334,14.49077458,166.59,166.5,14.44749751]
[1730830662541,14.44749751,166.58,166.48,1.2786]
[1730830662736,15.78739751,166.58,166.48,1.2786]
[1730830662939,27.11817209,166.58,166.48,1.2786]
[1730830663155,15.78739751,166.58,166.48,1.2786]
[1730830663349,3.0026,166.53,166.48,4.282]
[1730830663842,3.0024,166.54,166.5,14.44749751]
[1730830665039,17.02129751,166.6,166.5,14.44749751]
[1730830665247,3.0021,166.56,166.52,14.44749751]
[1730830665748,3.0017,166.58,166.52,14.44749751]
[1730830665946,3.0017,166.58,166.54,14.44749751]
[1730830666139,14.44749751,166.64,166.54,14.44749751]
[1730830666340,3.0014,166.6,166.55,3.0021]
[1730830666547,3.0014,166.6,166.55,6.1621]
[1730830666845,11.32944308,166.63,166.55,6.1621]
[1730830667046,25.77694059,166.64,166.55,6.1621]
[1730830667249,14.44749751,166.64,166.55,6.1621]
[1730830667638,3.0014,166.6,166.55,6.1621]
[1730830667845,3.0014,166.6,166.56,14.44749751]
[1730830668149,3.0013,166.61,166.56,17.44949751]
[1730830668440,3.0013,166.61,166.56,18.83569751]
[1730830668643,1.2839,166.65,166.56,18.83569751]
[1730830668842,3.0013,166.6,166.56,18.83569751]
[1730830669441,3.0013,166.6,166.56,15.83369751]
[1730830670438,3.0018,166.57,166.56,1.3862]
[1730830670743,14.44749751,166.64,166.54,3.18]
[1730830670939,3.18,166.63,166.54,3.18]
[1730830671545,3.0022,166.55,166.54,3.18]
[1730830671849,14.44749751,166.62,166.54,3.18]
[1730830673047,3.0014,166.6,166.54,3.18]
[1730830673250,14.44749751,166.62,166.54,3.18]
[1730830673752,3.0021,166.56,166.54,3.18]
[1730830676453,14.44749751,166.62,166.52,14.44749751]
[1730830676674,14.44749751,166.6,166.49,4.5571]
[1730830676848,3.18,166.59,166.49,4.5571]
[1730830677158,3.0027,166.53,166.49,4.5571]
[1730830677749,3.18,166.59,166.49,4.5571]
[1730830677945,3.0028,166.52,166.49,4.5571]
[1730830678557,3.0022,166.56,166.51,3.0029]
[1730830678755,3.18,166.6,166.5,14.44749751]
[1730830679152,3.0022,166.56,166.51,3.0029]
[1730830679357,3.18,166.6,166.5,14.44749751]
[1730830680165,14.44749751,166.59,166.5,14.44749751]
[1730830681262,3.0025,166.54,166.5,14.44749751]
[1730830682162,3.0022,166.55,166.52,14.44749751]
[1730830684263,3.18,166.6,166.52,14.44749751]
[1730830684563,3.18,166.6,166.5,14.44749751]
[1730830685060,14.44749751,166.59,166.5,14.44749751]
[1730830685967,14.44749751,166.59,166.49,4.5571]
[1730830687461,3.0028,166.52,166.49,4.5571]
[1730830688166,3.0028,166.52,166.5,14.44749751]
[1730830693666,3.0021,166.56,166.51,3.0028]
[1730830693968,11.33274057,166.6,166.52,14.44749751]
[1730830694164,14.44749751,166.6,166.49,19.00459751]
[1730830694760,3.0025,166.54,166.51,14.44749751]
[1730830697271,14.51274057,166.61,166.51,14.44749751]
[1730830697469,3.0026,166.53,166.51,14.44749751]
[1730830697668,3.0026,166.53,166.49,22.00779751]
[1730830700071,14.44749751,166.58,166.48,2.6016]
[1730830700273,4.4496,166.57,166.48,1.34]
[1730830701075,14.44749751,166.56,166.46,3.16]
[1730830701272,3.0032,166.5,166.45,14.44749751]
[1730830701471,3.0032,166.5,166.45,17.60749751]
[1730830701978,3.0033,166.49,166.45,20.61149751]
[1730830702280,14.44749751,166.56,166.45,20.61149751]
[1730830702667,3.0032,166.5,166.45,20.61149751]
[1730830703079,14.44749751,166.56,166.45,17.60749751]
[1730830703274,3.0029,166.51,166.48,14.44749751]
[1730830703477,15.82097835,166.57,166.48,14.44749751]
[1730830703666,3.16,166.57,166.48,14.44749751]
[1730830704372,20.45039751,166.6,166.5,14.44749751]
[1730830704373,17.60749751,166.6,166.5,14.44749751]
[1730830704573,11.3767218,166.59,166.5,17.60749751]
[1730830704880,28.98421931,166.6,166.5,17.60749751]
[1730830705363,3.0024,166.54,166.5,17.60749751]
[1730830706169,3.0024,166.54,166.5,20.61049751]
[1730830707472,3.0022,166.56,166.51,3.0029]
[1730830707668,11.3767218,166.59,166.51,3.0029]
[1730830707878,28.98421931,166.6,166.5,17.60749751]
[1730830708082,3.0023,166.55,166.5,20.61049751]
[1730830708377,14.5367218,166.6,166.52,14.44749751]
[1730830708577,3.002,166.57,166.53,3.0025]
[1730830708774,11.3767218,166.59,166.54,17.60749751]
[1730830709100,11.3767218,166.59,166.56,17.44949751]
[1730830709283,11.3767218,166.6,166.56,17.44949751]
[1730830709580,3.001,166.62,166.56,17.44949751]
[1730830712378,3.001,166.62,166.57,3.0018]
[1730830712577,3.0004,166.65,166.59,14.44749751]
[1730830712778,3.16,166.7,166.59,17.60749751]
[1730830713079,3.0004,166.65,166.61,14.44749751]
[1730830713281,17.60749751,166.71,166.61,14.44749751]
[1730830713481,3.16,166.71,166.63,14.44749751]
[1730830713781,2.9999,166.68,166.63,17.60749751]
[1730830713994,11.3767218,166.72,166.63,17.60749751]
[1730830714284,2.9999,166.68,166.63,17.60749751]
[1730830714677,17.60749751,166.73,166.63,17.60749751]
[1730830714879,3.0002,166.67,166.63,17.60749751]
[1730830715691,17.60749751,166.73,166.63,17.60749751]
[1730830715876,3.0,166.68,166.63,17.60749751]
[1730830716681,17.60749751,166.73,166.63,17.60749751]
[1730830716886,3.0001,166.67,166.63,17.60749751]
[1730830717280,1.2633,166.75,166.65,14.44749751]
[1730830717877,12.61771683,166.75,166.65,14.44749751]
[1730830718082,2.9998,166.69,166.65,14.44749751]
[1730830719885,14.44749751,166.73,166.63,17.60749751]
[1730830720082,3.0,166.68,166.63,17.60749751]
[1730830721685,3.0001,166.67,166.63,17.60749751]
[1730830722887,14.44749751,166.73,166.63,14.44749751]
[1730830723086,3.0008,166.63,166.62,3.16]
[1730830723687,3.0011,166.62,166.6,3.931]
[1730830723888,3.0011,166.62,166.61,3.16]
[1730830724881,14.44749751,166.7,166.6,3.931]
[1730830725086,3.0011,166.61,166.6,2.6392]
[1730830725490,3.0015,166.59,166.58,3.16]
[1730830725713,14.44749751,166.65,166.57,14.44749751]
[1730830725899,14.44749751,166.65,166.56,0.51808]
[1730830726196,3.0009,166.63,166.56,0.51808]
[1730830726396,14.44749751,166.65,166.56,0.51808]
[1730830726595,14.44749751,166.65,166.56,3.67808]
[1730830727291,3.0014,166.6,166.56,3.67808]
[1730830727798,3.0014,166.6,166.57,14.44749751]
[1730830729502,14.44749751,166.65,166.57,14.44749751]
[1730830730302,3.0015,166.59,166.57,14.44749751]
[1730830734011,3.0013,166.6,166.57,14.44749751]
[1730830735405,3.0015,166.59,166.57,14.44749751]
[1730830736651,3.16,166.64,166.54,14.44749751]
[1730830736809,3.16,166.63,166.54,14.44749751]
[1730830737713,3.0018,166.58,166.54,14.44749751]
[1730830738220,3.16,166.63,166.54,14.44749751]
[1730830738421,3.0019,166.57,166.54,14.44749751]
[1730830741321,3.002,166.56,166.54,14.44749751]
[1730830742313,3.16,166.63,166.54,17.44969751]
[1730830743722,9.22413147,166.62,166.56,9.22413147]
[1730830744210,3.16,166.63,166.58,9.22413147]
[1730830744211,12.38413147,166.63,166.58,9.22413147]
[1730830744520,9.22413147,166.64,166.59,9.22413147]
[1730830744713,9.22413147,166.64,166.58,9.22413147]
[1730830745018,9.22413147,166.61,166.55,9.22413147]
[1730830745214,9.22413147,166.59,166.51,1.3392]
[1730830745418,14.41831455,166.61,166.51,21.92031455]
[1730830745617,17.57831455,166.61,166.51,18.91751455]
[1730830747420,3.0022,166.55,166.51,21.92041455]
[1730830747621,3.0022,166.55,166.51,18.76041455]
[1730830750020,3.0025,166.54,166.51,15.75751455]
[1730830751115,17.57831455,166.61,166.51,1.3392]
[1730830751315,3.0026,166.53,166.51,1.3392]
[1730830751916,3.0026,166.53,166.5,4.9628]
[1730830752317,14.41831455,166.59,166.5,1.8028]
[1730830752618,3.0029,166.51,166.5,0.4227]
[1730830756312,14.41831455,166.52,166.43,14.41831455]
[1730830756518,3.0039,166.46,166.43,14.41831455]
[1730830756715,14.41831455,166.52,166.42,3.16]
[1730830757616,3.0033,166.49,166.43,14.41831455]
[1730830758324,3.0033,166.49,166.44,3.0041]
[1730830759318,4.5535,166.53,166.43,14.41831455]
[1730830759520,4.5535,166.53,166.45,3.0039]
[1730830759722,4.5535,166.53,166.43,14.41831455]
[1730830760120,3.0031,166.5,166.44,3.0042]
[1730830760322,4.5535,166.53,166.44,3.0042]
[1730830761537,3.0033,166.49,166.44,3.0042]
[1730830761823,3.16,166.53,166.46,3.0038]
[1730830762322,3.16,166.53,166.45,3.004]
[1730830762523,3.16,166.53,166.43,14.41831455]
[1730830763419,3.0032,166.5,166.43,14.41831455]
[1730830763930,3.0032,166.5,166.45,3.004]
[1730830765434,3.0033,166.5,166.46,9.2235916]
[1730830767439,9.2235916,166.52,166.46,9.2235916]
[1730830767738,9.2235916,166.5,166.45,9.2235916]
[1730830768042,3.0038,166.47,166.43,9.2235916]
[1730830768735,3.0038,166.47,166.43,12.2278916]
[1730830768941,3.0036,166.48,166.43,12.2278916]
[1730830769241,3.0036,166.48,166.45,9.2235916]
[1730830770744,3.0042,166.44,166.43,9.2235916]
[1730830770938,9.2235916,166.49,166.43,9.2235916]
[1730830771239,3.0039,166.46,166.43,9.2235916]
[1730830771627,9.2235916,166.47,166.43,9.2235916]
[1730830771849,3.0038,166.47,166.43,9.2235916]
[1730830772136,12.3835916,166.51,166.44,9.2235916]
[1730830772327,12.3835916,166.51,166.46,9.2235916]
[1730830773039,1.2898,166.52,166.46,9.2235916]
[1730830773040,1.2897,166.54,166.46,9.2235916]
[1730830773330,3.0032,166.5,166.47,9.2235916]
[1730830773854,3.0031,166.5,166.47,9.2235916]
[1730830775036,3.0034,166.49,166.46,9.2235916]
[1730830775732,3.0034,166.49,166.39,2.639]
[1730830775733,3.004,166.46,166.4,3.16]
[1730830775935,9.2235916,166.47,166.41,9.2235916]
[1730830776440,3.004,166.46,166.41,12.2281916]
[1730830776938,3.004,166.46,166.42,9.2235916]
[1730830777331,3.0043,166.44,166.37,3.16]
[1730830777537,9.2235916,166.45,166.39,9.2235916]
[1730830778242,3.0045,166.43,166.39,9.2235916]
[1730830779638,9.2235916,166.45,166.39,9.2235916]
[1730830779841,9.2235916,166.49,166.42,9.2235916]
[1730830780531,9.2235916,166.47,166.42,9.2235916]
[1730830781341,3.004,166.46,166.42,9.2235916]
[1730830781636,9.2235916,166.47,166.42,9.2235916]
[1730830783342,3.004,166.45,166.42,9.2235916]